Cogmind - Beta 13 @@@ ROGUE MODE // 2024.03.31 @ 22:30:05 Player: Snips Result: Destroyed by G-34 Mercenary with Small Laser Performance ------------- Evolutions (0) 0 Regions Visited (4) 800 Robots Destroyed (4) 20 Value Destroyed (40) 40 Prototype IDs (1) 20 Alien Tech Used (0) 0 Bonus (328) 328 TOTAL SCORE: 1208 Bonus ------- Follower Combat Kills 28 Aligned with FarCom 300 Cogmind --------- Core Integrity 0/250 Matter 256/300 Energy 125/125 System Corruption 0% Temperature Cool (6) Movement Walking (820) Ox10 Location -9/Mines Parts ------- > --- POWER (1) -------- Light Ion Engine > --- PROPULSION (2) --- Aluminum Leg Aluminum Leg > --- UTILITY (2) ------ Humpback > --- WEAPON (2) ------- Light Assault Rifle Light Assault Rifle > --- INVENTORY (35) --- Light Ion Engine Light Ion Engine Aluminum Leg Small Storage Unit Humpback Medium Matter Pod (63) Trap Reconfigurator Small Laser Peak State ------------ > --- POWER ------------ Light Ion Engine > --- PROPULSION ------- Aluminum Leg Aluminum Leg > --- UTILITY ---------- Small Storage Unit Trap Reconfigurator > --- WEAPON ----------- (None) > --- INVENTORY -------- Light Ion Engine Humpback Humpback Medium Matter Pod [Rating: 13] Favorites ----------- Power Light Ion Engine Engine Light Ion Engine Propulsion Aluminum Leg Treads Light Treads Leg Aluminum Leg Flight Unit Flight Unit Utility Small Storage Unit Device Trap Reconfigurator Storage Small Storage Unit Weapon Light Assault Rifle Energy Gun Small Laser Ballistic Gun Light Assault Rifle Build | -11 -10 -10 -10 -9 ------- Run | Yrd Mat Min Exi Min Slots Evolved . | . . . . . Power . | . . . . . Propulsion . | . . . . . Utility . | . . . . . Weapon . | . . . . . Parts Attached 21 | 4 2 3 5 7 Power 2 | 1 . . . 1 Engine 2 | 1 . . . 1 Core . | . . . . . Reactor . | . . . . . Propulsion 8 | 2 . 2 2 2 Treads 2 | 2 . . . . Leg 4 | . . . 2 2 Wheel . | . . . . . Hover . | . . . . . Flight 2 | . . 2 . . Utility 5 | . 1 . 3 1 Device 1 | . . . 1 . Storage 4 | . 1 . 2 1 Processor . | . . . . . Hackware . | . . . . . Protection . | . . . . . Artifact . | . . . . . Weapon 6 | 1 1 1 . 3 Energy Gun 1 | . . . . 1 Energy Cannon . | . . . . . Ballistic Gun 5 | 1 1 1 . 2 Ballistic Cannon . | . . . . . Launcher . | . . . . . Special Weapon . | . . . . . Impact Weapon . | . . . . . Slashing Weapon . | . . . . . Piercing Weapon . | . . . . . Special Melee Weapon . | . . . . . Unidentified Prototypes 1 | . . . 1 . Parts Lost 3 | . . . . 3 Power 1 | . . . . 1 Propulsion 2 | . . . . 2 Utility . | . . . . . Weapon . | . . . . . Highest Loss Streak 3 | . . . . 3 To Critical Strikes . | . . . . . Average Slot Usage (%) 71 | . 77 61 65 73 Engine 13 | . 14 14 14 12 Treads 4 | . 28 . . . Leg 18 | . . . 17 24 Flight 4 | . . 28 10 . Device 1 | . . . 4 . Storage 14 | . 12 14 18 12 Ballistic Gun 14 | . 22 4 . 21 Naked Turns 53 | . . . . 53 Heaviest Build 205 | 4 10 9 10 205 Greatest Support 40 | 40 40 8 20 20 Greatest Overweight (x) 10 | . . 1 1 10 Average Overweight (x) . | . . . . 4 Largest Inventory Capacity 35 | 5 8 8 8 35 Average Capacity 17 | 5 7 8 8 29 Most Carried 9 | 5 8 8 8 9 Average Carried 7 | 2 6 6 7 7 Final Capacity 35 | 5 8 8 8 35 Final Carried 9 | 5 8 7 6 9 Class Distribution -------------------- 59% | Mutant 40% | Hauler-Mutant Dominant Class ---------------- Mutant | -10/Materials Mutant | -10/Mines Mutant | -10/Exiles Hauler-Mutant | -9/Mines Resources | -11 -10 -10 -10 -9 ----------- Run | Yrd Mat Min Exi Min Matter Collected 449 | 72 44 . 200 133 Remotely . | . . . . . Salvage Created 60 | . 44 . . 16 Parts 9 | . 7 . . 2 Haulers Intercepted . | . . . . . Recyclers Shooed . | . . . . . Parts Field Recycled . | . . . . . Retrieved Matter . | . . . . . Parts Self-Destructed . | . . . . . Prevented . | . . . . . Kills | -11 -10 -10 -10 -9 ------- Run | Yrd Mat Min Exi Min Combat Hostiles Destroyed 4 | . 3 . . 1 Guns 4 | . 3 . . 1 Classes Destroyed 1 | . 1 . . . Swarmer 4 | . 3 . . 1 Best Kill Streak 3 | . 3 . . 1 Combat Bots Only 3 | . 3 . . 1 Max Kills in Single Turn 1 | . 1 . . 1 Gunslinging . | . . . . . Exploded . | . . . . . Melee . | . . . . . Uniques/NPCs Destroyed . | . . . . . Combat | -11 -10 -10 -10 -9 -------- Run | Yrd Mat Min Exi Min Hostile Shots Fired 111 | . 30 . . 81 Missed 32 | . 6 . . 26 Damage Taken 649 | . 193 . . 456 Core 252 | . 48 . . 204 Absorbed by Shields . | . . . . . Core Remaining (%) 100 | 100 . . . . Volleys Fired 30 | . 18 . . 12 Largest 2 | . 2 . . 2 Hottest 40 | . 40 . . 40 Shots Fired 37 | . 20 . . 17 Gun 37 | . 20 . . 17 Cannon . | . . . . . Launcher . | . . . . . Special . | . . . . . Kinetic 37 | . 20 . . 17 Thermal . | . . . . . Explosive . | . . . . . Electromagnetic . | . . . . . Robot Hit Streak 3 | . 3 . . 2 Robot Miss Streak 5 | . 3 . . 5 Penetration Max . | . . . . . Secondary Targets . | . . . . . Shots Hit Robots 18 | . 11 . . 7 Core Hits 9 | . 4 . . 5 Critical Kills . | . . . . . Critical Parts Destroyed 1 | . 1 . . . Critical Strikes 1 | . 1 . . . Destroy 1 | . 1 . . . Melee Attacks . | . . . . . Impact . | . . . . . Slashing . | . . . . . Piercing . | . . . . . Sneak Attacks . | . . . . . Combat Hostiles . | . . . . . Follow-up Attacks . | . . . . . Damage Inflicted 156 | . 91 . . 65 Guns 151 | . 91 . . 60 Cannons . | . . . . . Explosions . | . . . . . Melee . | . . . . . Ramming 5 | . . . . 5 Kinetic 151 | . 91 . . 60 Thermal . | . . . . . Explosive . | . . . . . Electromagnetic . | . . . . . Impact . | . . . . . Slashing . | . . . . . Piercing . | . . . . . Highest Corruption . | . . . . . Average Corruption . | . . . . . Corruption Purged . | . . . . . Corruption Blocked . | . . . . . Overload Shots . | . . . . . Overflow Damage . | . . . . . Projectiles . | . . . . . Explosions . | . . . . . Melee . | . . . . . Knockbacks . | . . . . . Impact . | . . . . . Kinetic . | . . . . . Secondary . | . . . . . Self-Inflicted Damage . | . . . . . Shots . | . . . . . Rammed . | . . . . . Targets Rammed 1 | . . . . 1 Kicked 1 | . . . . 1 Crushed . | . . . . . Highest Temperature . | . . . . . Average Temperature . | . . . . . Received Heat Transfer 6 | . . . . 6 Siege Activations . | . . . . . Robots Corrupted . | . . . . . Combat Hostiles . | . . . . . Parts Fried . | . . . . . Impact Corruptions . | . . . . . Robots Melted . | . . . . . Combat Hostiles . | . . . . . Parts Melted . | . . . . . Heat Transferred . | . . . . . Parts Sabotaged . | . . . . . Parts Stolen . | . . . . . Parts Stripped . | . . . . . Power Chain Reactions . | . . . . . Alert | -11 -10 -10 -10 -9 ------- Run | Yrd Mat Min Exi Min Peak Influence 244 | . 100 39 . 244 Initial 39 | . . 39 . . Average 95 | . 79 39 . 113 Maximum Alert Level 1 | . . . . 1 Low Security (%) 89 | 100 100 100 . 84 Level 1 10 | . . . . 15 Level 2 . | . . . . . Level 3 . | . . . . . Level 4 . | . . . . . Level 5 . | . . . . . High Security . | . . . . . Max Security . | . . . . . Squads Dispatched 2 | . 1 . . 1 Investigation 1 | . . . . 1 Extermination . | . . . . . Reinforcement 1 | . 1 . . . Assault . | . . . . . Garrison . | . . . . . Intercept . | . . . . . Searches Triggered . | . . . . . Construction Impeded . | . . . . . Haulers Reinforced . | . . . . . Active Scanning Responses . | . . . . . Cargo Convoy Interrupts . | . . . . . Stealth | -11 -10 -10 -10 -9 --------- Run | Yrd Mat Min Exi Min Distress Signals 2 | . 1 . . 1 Communications Jammed . | . . . . . Distress Signals . | . . . . . Times Spotted 19 | . 7 . . 12 Peak Tracking Total 7 | . 5 . . 7 Tactical Retreats 2 | . . . . 2 Traps | -11 -10 -10 -10 -9 ------- Run | Yrd Mat Min Exi Min Traps Triggered . | . . . . . Indirectly . | . . . . . Trap Hack Attempts . | . . . . . Triggered . | . . . . . Disarmed . | . . . . . Reprogrammed . | . . . . . Reused . | . . . . . Traps Extracted . | . . . . . Installed . | . . . . . Triggered . | . . . . . Machines | -11 -10 -10 -10 -9 ---------- Run | Yrd Mat Min Exi Min Machines Disabled . | . . . . . Max in Single Turn . | . . . . . Machines Repaired . | . . . . . Machines Dismantled . | . . . . . Machines Sabotaged . | . . . . . Overloaded Fab Kills . | . . . . . Hacking | -11 -10 -10 -10 -9 --------- Run | Yrd Mat Min Exi Min Machines Accessed 1 | . . . . 1 Terminals 1 | . . . . 1 Fabricators . | . . . . . Repair Stations . | . . . . . Recycling Units . | . . . . . Scanalyzers . | . . . . . Garrison Access . | . . . . . Total Hacks 7 | . . . . 7 Successful 2 | . . . . 2 Failed 5 | . . . . 5 Catastrophic . | . . . . . Database Lockouts . | . . . . . Manual 2 | . . . 2 . Terminals 7 | . . . . 7 Fabricators . | . . . . . Repair Stations . | . . . . . Recycling Units . | . . . . . Scanalyzers . | . . . . . Garrison Access . | . . . . . Terminal Hacks 2 | . . . . 2 Record 2 | . . . . 2 Fabricator Hacks . | . . . . . Repair Station Hacks . | . . . . . Recycling Unit Hacks . | . . . . . Scanalyzer . | . . . . . Garrison Access Hacks . | . . . . . Unauthorized Hacks . | . . . . . Terminals . | . . . . . Fabricators . | . . . . . Repair Stations . | . . . . . Recycling Units . | . . . . . Scanalyzers . | . . . . . Garrison Access . | . . . . . Data Cores Recovered . | . . . . . Used . | . . . . . Hacking Detections 1 | . . . . 1 Full Trace Events 1 | . . . . 1 Feedback Events . | . . . . . Feedback Blocked . | . . . . . Robot Schematics Acquired . | . . . . . Robots Built . | . . . . . Authchips . | . . . . . Time . | . . . . . Total Robot Build Rating . | . . . . . Part Schematics Acquired . | . . . . . Parts Built . | . . . . . Authchips . | . . . . . Time . | . . . . . Total Part Build Rating . | . . . . . Parts Repaired . | . . . . . Time . | . . . . . Parts Recycled . | . . . . . Recycled Matter . | . . . . . Retrieved Matter . | . . . . . Retrieved Components . | . . . . . Parts Scanalyzed . | . . . . . Part Schematics Acquired . | . . . . . Parts Damaged . | . . . . . Bothacking | -11 -10 -10 -10 -9 ------------ Run | Yrd Mat Min Exi Min Used RIF Installer . | . . . . . Robots Hacked . | . . . . . Non-combat . | . . . . . Combat . | . . . . . Robot Hacks Applied . | . . . . . Relay Couplers Released . | . . . . . Fabnet Peak Effective % . | . . . . . Robots Rewired . | . . . . . Allies Hacked . | . . . . . Hacks Repelled . | . . . . . Allies | -11 -10 -10 -10 -9 -------- Run | Yrd Mat Min Exi Min Total Allies 3 | . . . . 3 Largest Group 3 | . . . . 3 Highest-Rated Group 40 | . . . . 40 Highest-Rated Ally 16 | . . . . 16 Total Orders 3 | . . . . 3 ROAM 3 | . . . . 3 Ally Attacks 16 | . . . . 16 Total Damage 154 | . . . . 154 Kills 7 | . . . . 7 Allies Corrupted . | . . . . . Allies Melted . | . . . . . Intel | -11 -10 -10 -10 -9 ------- Run | Yrd Mat Min Exi Min Robot Analysis Total . | . . . . . Derelict Logs Recovered . | . . . . . Drone Launches . | . . . . . Drone Recoveries . | . . . . . Exploration | -11 -10 -10 -10 -9 ------------- Run | Yrd Mat Min Exi Min Turns Passed 1557 | 76 216 28 514 723 Spaces Moved 1058 | 42 65 28 769 154 Core 52 | 1 . . . 51 Treads 106 | 41 65 . . . Legs 361 | . . . 258 103 Wheels . | . . . . . Hover . | . . . . . Flight 539 | . . 28 511 . Fastest Speed 37 | 50 160 37 37 50 Average Speed 125 | 157 160 54 64 419 Slowest Speed 820 | 160 160 117 120 820 Overloaded Moves . | . . . . . Propulsion Burnouts . | . . . . . Robots Hopped . | . . . . . Cave-ins Triggered . | . . . . . Exploration Rate (%) 30 | 3 16 10 93 32 Regions Visited 4 Branch Regions 3 Pre-discovered Areas 1 | . . . . 1 Known Exits Taken . | . . . . . Unknown Exits Taken 4 | 1 1 1 1 . Scrap Searched 1 | . . . . 1 Spaces Dug . | . . . . . Terrain Destroyed . | . . . . . Melee . | . . . . . Projectile . | . . . . . AOE . | . . . . . Terrain Rammed . | . . . . . Walls Destroyed . | . . . . . Machines Disabled . | . . . . . Actions | -11 -10 -10 -10 -9 --------- Run | Yrd Mat Min Exi Min Total 1259 | 50 165 42 785 217 Wait 115 | . 73 7 1 34 Move 1054 | 41 64 27 768 154 Hop . | . . . . . Pick Up 19 | 5 6 . 3 5 Fast Attach 14 | 4 1 1 2 6 Attach 3 | . 1 2 . . Detach 3 | . . 1 1 1 Swap 4 | . . . 3 1 Drop 16 | . 2 4 7 3 Fire 30 | . 18 . . 12 Melee . | . . . . . Ram . | . . . . . Kick 1 | . . . . 1 Crush . | . . . . . Escape Stasis . | . . . . . Rewire . | . . . . . Trap . | . . . . . Miscellaneous . | . . . . . Route ------- -11/Scrapyard -10/Materials -10/Mines -10/Exiles -9/Mines History --------- Turn | Location | Event 32 | -11/Scrapyard | Discovered new exit (range 15) 77 | -11/Scrapyard | Entered Materials 243 | -10/Materials | Met 8R-AWN 279 | -10/Materials | Discovered new exit (range 10) 293 | -10/Materials | Entered Mines 294 | -10/Mines | Followed 8R-AWN into the Mines 319 | -10/Mines | Discovered new exit (range 5) 321 | -10/Mines | Entered Exiles 329 | -10/Exiles | Build established: Mutant 330 | -10/Exiles | Welcomed by 8R-AWN 337 | -10/Exiles | Met EX-HEX 360 | -10/Exiles | Met EX-DEC 371 | -10/Exiles | Visited The Gauntlet 439 | -10/Exiles | Met EX-BIN 444 | -10/Exiles | Aligned with FarCom system 444 | -10/Exiles | Given EX-Vault access code 546 | -10/Exiles | Discovered new exit (range 12) 669 | -10/Exiles | Opened EX-Vault 677 | -10/Exiles | Found Prototype Device 688 | -10/Exiles | Identified Trap Reconfigurator 707 | -10/Exiles | Warned to stay clear of 0b10 Research branches 835 | -10/Exiles | Left Exiles lab with Trap Reconfigurator 835 | -10/Exiles | Entered Mines 867 | -9/Mines | Core integrity fell below 50% 888 | -9/Mines | Core integrity fell below 20% 894 | -9/Mines | Assisted by bots powering up and referring to "LRC-V3" 899 | -9/Mines | Lost 3 parts (1p2n) 1192 | -9/Mines | Learned location of Storage (-9) 1237 | -9/Mines | Build established: Hauler-Mutant 1558 | -9/Mines | Destroyed by G-34 Mercenary with Small Laser Last Messages --------------- lowest levels, though this could be purely due to reduced surveillance capabilities in those areas. Encounters are more frequent in mid-levels where they are more easily dealt with, suggesting they are originating from deeper in the [Caves], which extend furthest at those depths. >>Query(The Assembled) Given this name by the Derelicts, these robots of integrated construction are created seemingly at random by larger mobile factories. They form sudden groups, often in the most unexpected of places, and attack almost everything. I can discern no pattern in their behavior, though as their hostility is not directed solely towards [Complex 0b10] and my robots it seems that their creator's intent is to instigate something larger while disrupting my own operations. ALERT: Suspicious activity at Terminal M001. Dispatching Investigation squad. T-07 Excavator is excavating. Map ----- +----------------------------------------------------+ | | | ?????????????????????????????????????????????????? | | ?????????????????????????????????????????????????? | | ?????????????????????????????????????????????????? | | ?????????????????????????????????????????????????? | | ?????????????????????????????????????????????????? | | ?????????????????????????????????????????????????? | | ?????????????????????????????????????????????????? | | ?????????????????????????????????????????????????? | | ?????????????????????????????????????????????????? | | ?????????????????????????????????????????????????? | | ?????????????????????????????????????????????????? | | ?????????????????????????????????????????????????? | | ?????????????????????????????????????????????????? | | ?????????????????????????????????????????????????? | | ?????????????????????????#???????????????????????? | | ????????????????????????? ???????????????????????? | | ????????????????????????# #??????????????????????? | | ????????????????????????# #??????????????????????? | | ????????????????????????# #??????????????????????? | | ????????????????????????# #??????????????????????? | | ????????????????????????#$#??????????????????????? | | ????????????????????????# #??????????????????????? | | ????????????????????????#u#???? ????????????????? | | ????????????????????????# #???? ????????????????? | | ????????????????????????#@#???? ?????############ | | ??????????####?########?# #???? ?????# | | ?????????## #?# """" ### #???? ?????# """ | | ????????## #?# """" g#???? ?????# """ | | ???????## #?# """" ### #????# """ | | ???????# #?# ####### #???# | | ???????# #?# T#??????? #???# """ | | ???????## #?### #####??????? ##### = """ | | ??###???## #???# #??????????? ## *% """ | | ?## ####?## ##### #####???????# ## ### = | | ?# #### #???????# ## #?############ | | ?# + = #####???# ## #????????????? | | ?# + ###### ## #???# #????????????? | | ?# ######????# ###### ##### ####????????????? | | ?########????????# #????# #??????????????? | | ????# #????????# #????## #?????????????? | | ????# #?######## #?????######## #?????????????? | | ##### #?# #????????????? #?????????????? | | # ### ########????????????? #?????????????? | | = ## #????????????????????# #?????????????? | | = #####????????????????? ?????????????? | | ! % #????????????????? ?????????????? | | * ## #????????????????? ????????????? | | =% ##????????????????????? ????????????? | | * ####?????????????????????? #????????????? | +----------------------------------------------------+ Best States ------------- Heat Dissipation 25 Energy Generation 10 Energy Capacity 125 Matter Stores 297 Matter Capacity 400 Sight Range 16 Terrain Scan Density 10 Evasion (%) 62 Recoil Reduction 2 Item Schematics ----------------- None Robot Schematics ------------------ None Fabricated ------------ Nothing Alien Tech Used ----------------- None Achievements -------------- Tank Challenges ------------ None Game ------ Seed InsulatedTitaniumBox Manual? 0 Play Time 00:21:11 Cumulative 2.6 hours Start 2024.03.30 @ 23:46:34 End 2024.03.31 @ 22:30:05 Sessions 3 Manual Loads 0 Difficulty Rogue Special Mode None Game No. 14 Rogue 14 Adventurer 0 Explorer 0 Win Type - Total 0 Types 0/0/0/0/0/0/0/0/0 Lore% 3 Gallery% 10 Achievement% 18 Wizard Run 0 Options --------- Layout 1 ASCII 0 Keyboard 0 Movement Numpad Keybinds 0 Fullscreen 2 Font 48/Terminus++ Map View 55x35 Zoom Use 0% Tactical HUD 0 Map Filters NONE Filters NONE Steam 1 RUN: a8796930-9365-4515-aa15-5b00401f6682